[Event "December 19 Early 2023"]
[Site "https://www.chess.com"]
[Date "2023.12.19"]
[Round "1"]
[White "Yeletsky, Ivan"]
[Black "Rakhimgaliyev, Yerlan"]
[Result "1-0"]
[Board "59"]
[TimeControl "180+1"]
[WhiteFideId "24180327"]
[BlackFideId "13705148"]
[WhiteElo "2379"]
[BlackElo "2261"]
[WhiteTeam "RUS"]
[BlackTeam "KAZ"]
[WhiteClock "0:00:45"]
[BlackClock "0:00:18"]

1. e4 {[%clk 0:03:00]}  e5 {[%clk 0:03:00]} 2. Nf3 {[%clk 0:03:00]}  d6 {[%clk 0:03:00]} 3. d4 {[%clk 0:03:00]}  exd4 {[%clk 0:03:01]} 4. Qxd4 {[%clk 0:03:00]}  Nf6 {[%clk 0:03:00]} 5. Bg5 {[%clk 0:02:50]}  Be7 {[%clk 0:03:00]} 6. Nc3 {[%clk 0:02:50]}  Nc6 {[%clk 0:02:59]} 7. Qd2 {[%clk 0:02:50]}  O-O {[%clk 0:02:59]} 8. O-O-O {[%clk 0:02:50]}  Be6 {[%clk 0:02:57]} 9. Bb5 {[%clk 0:02:32]}  Rb8 {[%clk 0:02:53]} 10. Rhe1 {[%clk 0:02:23]}  a6 {[%clk 0:02:52]} 11. Ba4 {[%clk 0:02:20]}  b5 {[%clk 0:02:47]} 12. Bb3 {[%clk 0:02:21]}  h6 {[%clk 0:02:39]} 13. Bh4 {[%clk 0:02:16]}  Nd7 {[%clk 0:02:21]} 14. Bxe7 {[%clk 0:02:09]}  Qxe7 {[%clk 0:02:21]} 15. Kb1 {[%clk 0:02:03]}  Nc5 {[%clk 0:02:12]} 16. Bd5 {[%clk 0:02:01]}  Bd7 {[%clk 0:01:58]} 17. Bxc6 {[%clk 0:01:58]}  Bxc6 {[%clk 0:01:59]} 18. Nd4 {[%clk 0:01:59]}  Ba8 {[%clk 0:01:56]} 19. f3 {[%clk 0:01:56]}  Qh4 {[%clk 0:01:50]} 20. g4 {[%clk 0:01:52]}  b4 {[%clk 0:01:48]} 21. Nce2 {[%clk 0:01:52]}  Na4 {[%clk 0:01:40]} 22. Ka1 {[%clk 0:01:51]}  d5 {[%clk 0:01:32]} 23. e5 {[%clk 0:01:48]}  c5 {[%clk 0:01:19]} 24. Nf5 {[%clk 0:01:47]}  Qd8 {[%clk 0:01:20]} 25. Nf4 {[%clk 0:01:37]}  d4 {[%clk 0:01:17]} 26. Nxg7 {[%clk 0:01:12]}  Bxf3 {[%clk 0:00:53]} 27. Nf5 {[%clk 0:01:02]}  Bxd1 {[%clk 0:00:49]} 28. Rxd1 {[%clk 0:00:58]}  c4 {[%clk 0:00:36]} 29. Nd5 {[%clk 0:00:43]}  Qxd5 {[%clk 0:00:20]} 30. Ne7+ {[%clk 0:00:43]}  Kg7 {[%clk 0:00:20]} 31. Nxd5 {[%clk 0:00:44]}  c3 {[%clk 0:00:21]} 32. Qxd4 {[%clk 0:00:43]}  cxb2+ {[%clk 0:00:20]} 33. Kb1 {[%clk 0:00:43]}  Nc3+ {[%clk 0:00:19]} 34. Nxc3 {[%clk 0:00:43]}  bxc3 {[%clk 0:00:20]} 35. e6+ {[%clk 0:00:44]}  f6 {[%clk 0:00:20]} 36. Qxc3 {[%clk 0:00:43]}  Rfd8 {[%clk 0:00:20]} 37. Rd7+ {[%clk 0:00:44]}  Rxd7 {[%clk 0:00:20]} 38. exd7 {[%clk 0:00:45]}  Rd8 {[%clk 0:00:18]} 39. Qc7 {[%clk 0:00:45]} 1-0

[Event "December 19 Early 2023"]
[Site "https://www.chess.com"]
[Date "2023.12.19"]
[Round "1"]
[White "Serra Canals, Oriol"]
[Black "Livaic, Leon"]
[Result "0-1"]
[Board "60"]
[TimeControl "180+1"]
[WhiteFideId "22276084"]
[BlackFideId "14531534"]
[WhiteElo "2108"]
[BlackElo "2541"]
[WhiteTeam "ESP"]
[BlackTeam "CRO"]
[WhiteClock "0:00:16"]
[BlackClock "0:01:20"]

1. d4 {[%clk 0:02:54]}  Nf6 {[%clk 0:02:59]} 2. c4 {[%clk 0:02:47]}  g6 {[%clk 0:02:59]} 3. Nf3 {[%clk 0:02:45]}  Bg7 {[%clk 0:02:59]} 4. Nc3 {[%clk 0:02:45]}  O-O {[%clk 0:02:59]} 5. g3 {[%clk 0:02:46]}  d6 {[%clk 0:02:59]} 6. Bg2 {[%clk 0:02:47]}  Nbd7 {[%clk 0:03:00]} 7. O-O {[%clk 0:02:47]}  e5 {[%clk 0:03:00]} 8. e4 {[%clk 0:02:47]}  exd4 {[%clk 0:03:01]} 9. Nxd4 {[%clk 0:02:48]}  Re8 {[%clk 0:03:01]} 10. h3 {[%clk 0:02:46]}  Nc5 {[%clk 0:03:01]} 11. Re1 {[%clk 0:02:47]}  h6 {[%clk 0:03:02]} 12. Kh2 {[%clk 0:02:31]}  c6 {[%clk 0:02:57]} 13. b4 {[%clk 0:02:27]}  Ne6 {[%clk 0:02:57]} 14. Be3 {[%clk 0:02:27]}  a5 {[%clk 0:02:39]} 15. a3 {[%clk 0:02:22]}  axb4 {[%clk 0:02:36]} 16. axb4 {[%clk 0:02:23]}  Rxa1 {[%clk 0:02:36]} 17. Qxa1 {[%clk 0:02:24]}  Nxd4 {[%clk 0:02:26]} 18. Bxd4 {[%clk 0:02:24]}  Ng4+ {[%clk 0:02:26]} 19. hxg4 {[%clk 0:02:19]}  Bxd4 {[%clk 0:02:27]} 20. f3 {[%clk 0:02:04]}  Qf6 {[%clk 0:02:03]} 21. Rc1 {[%clk 0:02:03]}  Be5 {[%clk 0:01:58]} 22. f4 {[%clk 0:01:58]}  Bd4 {[%clk 0:01:37]} 23. c5 {[%clk 0:01:11]}  Bxg4 {[%clk 0:01:24]} 24. cxd6 {[%clk 0:01:10]}  Qxd6 {[%clk 0:01:25]} 25. e5 {[%clk 0:01:09]}  Qxb4 {[%clk 0:01:22]} 26. Qa4 {[%clk 0:00:16]}  Bxc3 {[%clk 0:01:20]} 0-1

[Event "December 19 Early 2023"]
[Site "https://www.chess.com"]
[Date "2023.12.19"]
[Round "1"]
[White "Maksimovic, Bojan"]
[Black "Manukyan, Sargis V."]
[Result "1-0"]
[Board "63"]
[TimeControl "180+1"]
[WhiteFideId "14408120"]
[BlackFideId "13303465"]
[WhiteElo "2527"]
[BlackElo "2236"]
[WhiteTeam "BIH"]
[BlackTeam "ARM"]
[WhiteClock "0:00:21"]
[BlackClock "0:00:07"]

1. a3 {[%clk 0:02:55]}  Nf6 {[%clk 0:02:59]} 2. h3 {[%clk 0:02:53]}  g6 {[%clk 0:02:59]} 3. d4 {[%clk 0:02:53]}  Bg7 {[%clk 0:02:59]} 4. Nc3 {[%clk 0:02:52]}  c5 {[%clk 0:02:48]} 5. d5 {[%clk 0:02:52]}  d6 {[%clk 0:02:39]} 6. e4 {[%clk 0:02:51]}  O-O {[%clk 0:02:39]} 7. Nf3 {[%clk 0:02:40]}  e6 {[%clk 0:02:39]} 8. Bg5 {[%clk 0:02:13]}  h6 {[%clk 0:02:32]} 9. Bh4 {[%clk 0:02:13]}  exd5 {[%clk 0:02:26]} 10. exd5 {[%clk 0:02:12]}  Re8+ {[%clk 0:02:26]} 11. Be2 {[%clk 0:02:13]}  Nbd7 {[%clk 0:02:17]} 12. O-O {[%clk 0:02:12]}  a6 {[%clk 0:02:17]} 13. Bg3 {[%clk 0:02:04]}  Qc7 {[%clk 0:02:14]} 14. a4 {[%clk 0:02:03]}  c4 {[%clk 0:01:44]} 15. Nd2 {[%clk 0:01:48]}  Nb6 {[%clk 0:01:31]} 16. a5 {[%clk 0:01:42]}  Nbxd5 {[%clk 0:01:31]} 17. Nxd5 {[%clk 0:01:42]}  Nxd5 {[%clk 0:01:32]} 18. Nxc4 {[%clk 0:01:42]}  Be6 {[%clk 0:01:19]} 19. Ra4 {[%clk 0:00:41]}  Rad8 {[%clk 0:01:10]} 20. c3 {[%clk 0:00:29]}  Bxc3 {[%clk 0:00:48]} 21. bxc3 {[%clk 0:00:24]}  Nxc3 {[%clk 0:00:48]} 22. Qc2 {[%clk 0:00:24]}  Nxa4 {[%clk 0:00:28]} 23. Qxa4 {[%clk 0:00:24]}  Bd7 {[%clk 0:00:26]} 24. Qa2 {[%clk 0:00:23]}  Bb5 {[%clk 0:00:21]} 25. Ne3 {[%clk 0:00:21]}  Bxe2 {[%clk 0:00:17]} 26. Qxe2 {[%clk 0:00:22]}  Qxa5 {[%clk 0:00:17]} 27. Qb2 {[%clk 0:00:22]}  b5 {[%clk 0:00:13]} 28. Ng4 {[%clk 0:00:22]}  Re6 {[%clk 0:00:09]} 29. Nxh6+ {[%clk 0:00:21]}  Kf8 {[%clk 0:00:09]} 30. Qh8+ {[%clk 0:00:21]}  Ke7 {[%clk 0:00:09]} 31. Bh4+ {[%clk 0:00:21]}  f6 {[%clk 0:00:07]} 32. Qg7+ {[%clk 0:00:21]}  Ke8 {[%clk 0:00:07]} 33. Qf7# {[%clk 0:00:21]} 1-0

[Event "December 19 Early 2023"]
[Site "https://www.chess.com"]
[Date "2023.12.19"]
[Round "1"]
[White "Mohammadi, Melika"]
[Black "Pichot, Alan"]
[Result "0-1"]
[Board "64"]
[TimeControl "180+1"]
[WhiteFideId "42529271"]
[BlackFideId "110973"]
[WhiteElo "1901"]
[BlackElo "2592"]
[WhiteTeam "IRI"]
[BlackTeam "ESP"]
[WhiteClock "0:00:00"]
[BlackClock "0:00:04"]

1. e4 {[%clk 0:03:00]}  c5 {[%clk 0:02:58]} 2. Nf3 {[%clk 0:02:59]}  d6 {[%clk 0:02:58]} 3. d4 {[%clk 0:02:58]}  cxd4 {[%clk 0:02:58]} 4. Nxd4 {[%clk 0:02:59]}  Nf6 {[%clk 0:02:59]} 5. Nc3 {[%clk 0:02:58]}  a6 {[%clk 0:02:57]} 6. f3 {[%clk 0:02:58]}  e5 {[%clk 0:02:54]} 7. Nb3 {[%clk 0:02:58]}  Be6 {[%clk 0:02:54]} 8. Be3 {[%clk 0:02:58]}  Nbd7 {[%clk 0:02:54]} 9. g4 {[%clk 0:02:50]}  b5 {[%clk 0:02:52]} 10. g5 {[%clk 0:02:43]}  Nh5 {[%clk 0:02:51]} 11. Nd5 {[%clk 0:02:29]}  h6 {[%clk 0:02:24]} 12. gxh6 {[%clk 0:02:08]}  g6 {[%clk 0:02:23]} 13. Qd2 {[%clk 0:01:59]}  Bxd5 {[%clk 0:02:14]} 14. Qxd5 {[%clk 0:01:56]}  Rc8 {[%clk 0:01:47]} 15. O-O-O {[%clk 0:01:45]}  Qf6 {[%clk 0:01:44]} 16. Be2 {[%clk 0:00:55]}  Bxh6 {[%clk 0:00:55]} 17. Bxh6 {[%clk 0:00:51]}  Rxh6 {[%clk 0:00:56]} 18. Qxd6 {[%clk 0:00:16]}  Qxd6 {[%clk 0:00:56]} 19. Rxd6 {[%clk 0:00:16]}  Ng3 {[%clk 0:00:55]} 20. Re1 {[%clk 0:00:11]}  Rxh2 {[%clk 0:00:56]} 21. Bd3 {[%clk 0:00:10]}  Nb8 {[%clk 0:00:48]} 22. a3 {[%clk 0:00:07]}  Ke7 {[%clk 0:00:46]} 23. Rd5 {[%clk 0:00:07]}  f6 {[%clk 0:00:41]} 24. Kb1 {[%clk 0:00:04]}  Nd7 {[%clk 0:00:39]} 25. Rg1 {[%clk 0:00:02]}  Rh1 {[%clk 0:00:36]} 26. Rxh1 {[%clk 0:00:02]}  Nxh1 {[%clk 0:00:37]} 27. a4 {[%clk 0:00:01]}  bxa4 {[%clk 0:00:36]} 28. Na5 {[%clk 0:00:02]}  Nc5 {[%clk 0:00:27]} 29. Bc4 {[%clk 0:00:02]}  Nf2 {[%clk 0:00:21]} 30. Rd2 {[%clk 0:00:02]}  Nh3 {[%clk 0:00:20]} 31. Rh2 {[%clk 0:00:03]}  Ng5 {[%clk 0:00:21]} 32. Rf2 {[%clk 0:00:02]}  Ncxe4 {[%clk 0:00:12]} 33. fxe4 {[%clk 0:00:01]}  Rc5 {[%clk 0:00:13]} 34. Rg2 {[%clk 0:00:02]}  Rxa5 {[%clk 0:00:13]} 35. Bd5 {[%clk 0:00:03]}  Rc5 {[%clk 0:00:08]} 36. c3 {[%clk 0:00:03]}  a3 {[%clk 0:00:05]} 37. Rc2 {[%clk 0:00:01]}  axb2 {[%clk 0:00:06]} 38. Kxb2 {[%clk 0:00:02]}  f5 {[%clk 0:00:06]} 39. Rf2 {[%clk 0:00:01]}  fxe4 {[%clk 0:00:06]} 40. Bxe4 {[%clk 0:00:01]}  Nxe4 {[%clk 0:00:06]} 41. Rg2 {[%clk 0:00:01]}  Rc6 {[%clk 0:00:06]} 42. Rg4 {[%clk 0:00:01]}  Nxc3 {[%clk 0:00:05]} 43. Rg5 {[%clk 0:00:02]}  Kf6 {[%clk 0:00:04]} 44. Rg3 {[%clk 0:00:00]}  Nd1+ {[%clk 0:00:04]} 0-1

[Event "December 19 Early 2023"]
[Site "https://www.chess.com"]
[Date "2023.12.19"]
[Round "1"]
[White "Kravtsiv, Martyn"]
[Black "Tworuszka, Michal"]
[Result "1-0"]
[Board "65"]
[TimeControl "180+1"]
[WhiteFideId "14113147"]
[BlackFideId "1117858"]
[WhiteElo "2689"]
[BlackElo "2459"]
[WhiteTeam "UKR"]
[BlackTeam "POL"]
[WhiteClock "0:00:25"]
[BlackClock "0:00:00"]

1. e4 {[%clk 0:03:00]}  c5 {[%clk 0:02:58]} 2. Nf3 {[%clk 0:02:59]}  d6 {[%clk 0:02:58]} 3. Bb5+ {[%clk 0:02:59]}  Nd7 {[%clk 0:02:57]} 4. d4 {[%clk 0:02:58]}  cxd4 {[%clk 0:02:57]} 5. Qxd4 {[%clk 0:02:58]}  a6 {[%clk 0:02:56]} 6. Bxd7+ {[%clk 0:02:58]}  Bxd7 {[%clk 0:02:56]} 7. O-O {[%clk 0:02:58]}  e5 {[%clk 0:02:41]} 8. Qd3 {[%clk 0:02:58]}  Nf6 {[%clk 0:02:40]} 9. Bg5 {[%clk 0:02:41]}  Be7 {[%clk 0:02:30]} 10. Bxf6 {[%clk 0:02:40]}  gxf6 {[%clk 0:02:04]} 11. Nc3 {[%clk 0:02:39]}  Be6 {[%clk 0:02:02]} 12. Nh4 {[%clk 0:02:35]}  Rc8 {[%clk 0:01:58]} 13. Nd5 {[%clk 0:02:34]}  Bxd5 {[%clk 0:01:52]} 14. exd5 {[%clk 0:02:32]}  Qb6 {[%clk 0:01:35]} 15. Nf5 {[%clk 0:02:29]}  Rg8 {[%clk 0:01:24]} 16. b3 {[%clk 0:02:23]}  Qc5 {[%clk 0:01:17]} 17. c4 {[%clk 0:02:22]}  Rg6 {[%clk 0:01:09]} 18. Rfe1 {[%clk 0:02:14]}  Bf8 {[%clk 0:01:04]} 19. h3 {[%clk 0:01:55]}  Kd7 {[%clk 0:00:55]} 20. Re4 {[%clk 0:01:51]}  Be7 {[%clk 0:00:51]} 21. Rh4 {[%clk 0:01:50]}  Rcg8 {[%clk 0:00:49]} 22. g3 {[%clk 0:01:41]}  Rh8 {[%clk 0:00:48]} 23. Kg2 {[%clk 0:01:41]}  Bd8 {[%clk 0:00:42]} 24. Re1 {[%clk 0:01:36]}  Bb6 {[%clk 0:00:42]} 25. Re2 {[%clk 0:01:36]}  Qc8 {[%clk 0:00:36]} 26. b4 {[%clk 0:01:35]}  Qc7 {[%clk 0:00:34]} 27. Rc2 {[%clk 0:01:32]}  Ba7 {[%clk 0:00:34]} 28. c5 {[%clk 0:01:32]}  dxc5 {[%clk 0:00:33]} 29. bxc5 {[%clk 0:01:31]}  Bxc5 {[%clk 0:00:33]} 30. Qc4 {[%clk 0:01:18]}  b6 {[%clk 0:00:32]} 31. Qxa6 {[%clk 0:01:17]}  Rg5 {[%clk 0:00:32]} 32. Qa4+ {[%clk 0:01:12]}  Kd8 {[%clk 0:00:26]} 33. Qa8+ {[%clk 0:00:57]}  Qc8 {[%clk 0:00:26]} 34. Qxc8+ {[%clk 0:00:58]}  Kxc8 {[%clk 0:00:27]} 35. Nd6+ {[%clk 0:00:58]}  Kd7 {[%clk 0:00:24]} 36. Nxf7 {[%clk 0:00:59]}  Rgg8 {[%clk 0:00:21]} 37. Nxh8 {[%clk 0:00:58]}  Rxh8 {[%clk 0:00:22]} 38. Rh6 {[%clk 0:00:46]}  Kd6 {[%clk 0:00:17]} 39. Rxf6+ {[%clk 0:00:43]}  Kxd5 {[%clk 0:00:18]} 40. Rd2+ {[%clk 0:00:42]}  Kc4 {[%clk 0:00:17]} 41. h4 {[%clk 0:00:39]}  e4 {[%clk 0:00:12]} 42. Re6 {[%clk 0:00:38]}  Kc3 {[%clk 0:00:06]} 43. Re2 {[%clk 0:00:38]}  e3 {[%clk 0:00:05]} 44. fxe3 {[%clk 0:00:38]}  Ra8 {[%clk 0:00:03]} 45. h5 {[%clk 0:00:36]}  Kd3 {[%clk 0:00:03]} 46. Rf2 {[%clk 0:00:36]}  Ra7 {[%clk 0:00:01]} 47. h6 {[%clk 0:00:35]}  Rc7 {[%clk 0:00:01]} 48. Kh3 {[%clk 0:00:34]}  Rd7 {[%clk 0:00:01]} 49. g4 {[%clk 0:00:34]}  Rc7 {[%clk 0:00:01]} 50. g5 {[%clk 0:00:33]}  Rd7 {[%clk 0:00:01]} 51. Kg4 {[%clk 0:00:33]}  Kc3 {[%clk 0:00:02]} 52. g6 {[%clk 0:00:27]}  hxg6 {[%clk 0:00:02]} 53. Rxg6 {[%clk 0:00:27]}  Bxe3 {[%clk 0:00:02]} 54. Rf3 {[%clk 0:00:26]}  Kd2 {[%clk 0:00:02]} 55. Rh3 {[%clk 0:00:25]}  Rh7 {[%clk 0:00:01]} 56. Rd6+ {[%clk 0:00:25]}  Ke2 {[%clk 0:00:00]} 57. Re6 {[%clk 0:00:25]} 1-0

[Event "December 19 Early 2023"]
[Site "https://www.chess.com"]
[Date "2023.12.19"]
[Round "1"]
[White "Bagrationi, Alexander"]
[Black "Klymchuk, Andriy"]
[Result "0-1"]
[Board "66"]
[TimeControl "180+1"]
[WhiteFideId "14104954"]
[BlackFideId "14140063"]
[WhiteElo "2366"]
[BlackElo "2487"]
[WhiteTeam "ISR"]
[BlackTeam "UKR"]
[WhiteClock "0:00:00"]
[BlackClock "0:00:15"]

1. d4 {[%clk 0:02:55]}  Nf6 {[%clk 0:02:59]} 2. c4 {[%clk 0:02:51]}  c5 {[%clk 0:02:58]} 3. d5 {[%clk 0:02:50]}  b5 {[%clk 0:02:58]} 4. cxb5 {[%clk 0:02:50]}  a6 {[%clk 0:02:58]} 5. bxa6 {[%clk 0:02:51]}  g6 {[%clk 0:02:58]} 6. Nc3 {[%clk 0:02:51]}  Bg7 {[%clk 0:02:58]} 7. e4 {[%clk 0:02:51]}  O-O {[%clk 0:02:58]} 8. Nf3 {[%clk 0:02:44]}  Qa5 {[%clk 0:02:58]} 9. Nd2 {[%clk 0:02:42]}  Bxa6 {[%clk 0:02:52]} 10. Bxa6 {[%clk 0:02:37]}  Qxa6 {[%clk 0:02:44]} 11. Qe2 {[%clk 0:02:36]}  Qxe2+ {[%clk 0:02:42]} 12. Kxe2 {[%clk 0:02:36]}  d6 {[%clk 0:02:42]} 13. Nc4 {[%clk 0:02:33]}  Nbd7 {[%clk 0:02:41]} 14. f3 {[%clk 0:02:25]}  Rfb8 {[%clk 0:02:39]} 15. Kd3 {[%clk 0:02:21]}  Nb6 {[%clk 0:02:36]} 16. Nxb6 {[%clk 0:02:03]}  Rxb6 {[%clk 0:02:37]} 17. b3 {[%clk 0:02:03]}  Nd7 {[%clk 0:02:34]} 18. Bb2 {[%clk 0:02:02]}  c4+ {[%clk 0:02:05]} 19. Kc2 {[%clk 0:02:00]}  cxb3+ {[%clk 0:01:58]} 20. axb3 {[%clk 0:02:00]}  Rab8 {[%clk 0:01:55]} 21. Ra3 {[%clk 0:01:56]}  Nc5 {[%clk 0:01:55]} 22. Rb1 {[%clk 0:00:52]}  Nxb3 {[%clk 0:01:47]} 23. Bc1 {[%clk 0:00:52]}  Nd4+ {[%clk 0:01:41]} 24. Kd3 {[%clk 0:00:52]}  Rxb1 {[%clk 0:01:13]} 25. Nxb1 {[%clk 0:00:52]}  h5 {[%clk 0:01:13]} 26. Nc3 {[%clk 0:00:48]}  Nb3 {[%clk 0:01:09]} 27. Be3 {[%clk 0:00:45]}  Bf6 {[%clk 0:01:08]} 28. Kc4 {[%clk 0:00:36]}  Nc5 {[%clk 0:01:08]} 29. Bxc5 {[%clk 0:00:34]}  dxc5 {[%clk 0:01:09]} 30. Rb3 {[%clk 0:00:30]}  Rc8 {[%clk 0:01:03]} 31. Na4 {[%clk 0:00:28]}  h4 {[%clk 0:01:00]} 32. Nxc5 {[%clk 0:00:26]}  Be5 {[%clk 0:01:00]} 33. h3 {[%clk 0:00:25]}  Bd6 {[%clk 0:00:58]} 34. Rb5 {[%clk 0:00:25]}  f6 {[%clk 0:00:50]} 35. Kd4 {[%clk 0:00:25]}  Ra8 {[%clk 0:00:50]} 36. Nd3 {[%clk 0:00:19]}  Ra2 {[%clk 0:00:45]} 37. f4 {[%clk 0:00:12]}  Rd2 {[%clk 0:00:42]} 38. Ke3 {[%clk 0:00:10]}  Rxg2 {[%clk 0:00:41]} 39. e5 {[%clk 0:00:11]}  fxe5 {[%clk 0:00:41]} 40. fxe5 {[%clk 0:00:11]}  Rg3+ {[%clk 0:00:39]} 41. Ke4 {[%clk 0:00:12]}  Bc7 {[%clk 0:00:24]} 42. Rb7 {[%clk 0:00:12]}  Ba5 {[%clk 0:00:24]} 43. Rxe7 {[%clk 0:00:10]}  Rxh3 {[%clk 0:00:25]} 44. d6 {[%clk 0:00:10]}  Rg3 {[%clk 0:00:21]} 45. Ra7 {[%clk 0:00:09]}  h3 {[%clk 0:00:18]} 46. Rxa5 {[%clk 0:00:09]}  h2 {[%clk 0:00:18]} 47. Nf2 {[%clk 0:00:08]}  Kf7 {[%clk 0:00:16]} 48. Ra7+ {[%clk 0:00:04]}  Ke8 {[%clk 0:00:16]} 49. e6 {[%clk 0:00:04]}  Rg4+ {[%clk 0:00:15]} 50. Ke5 {[%clk 0:00:00]}  Rg5+ {[%clk 0:00:15]} 0-1

[Event "December 19 Early 2023"]
[Site "https://www.chess.com"]
[Date "2023.12.19"]
[Round "1"]
[White "Beerdsen, Thomas"]
[Black "Kanyamarala, Trisha"]
[Result "1-0"]
[Board "67"]
[TimeControl "180+1"]
[WhiteFideId "1030108"]
[BlackFideId "45004722"]
[WhiteElo "2550"]
[BlackElo "2078"]
[WhiteTeam "NED"]
[BlackTeam "IRL"]
[WhiteClock "0:01:42"]
[BlackClock "0:00:01"]

1. e4 {[%clk 0:03:00]}  c5 {[%clk 0:02:58]} 2. Nf3 {[%clk 0:03:00]}  Nc6 {[%clk 0:02:55]} 3. Bc4 {[%clk 0:03:00]}  e6 {[%clk 0:02:53]} 4. O-O {[%clk 0:03:00]}  d5 {[%clk 0:02:53]} 5. Bb5 {[%clk 0:03:01]}  Nf6 {[%clk 0:02:47]} 6. exd5 {[%clk 0:02:56]}  exd5 {[%clk 0:02:47]} 7. d4 {[%clk 0:02:55]}  c4 {[%clk 0:02:44]} 8. Bg5 {[%clk 0:02:53]}  Be7 {[%clk 0:02:43]} 9. Ne5 {[%clk 0:02:52]}  Qb6 {[%clk 0:02:38]} 10. Nc3 {[%clk 0:02:46]}  O-O {[%clk 0:02:25]} 11. Bxc6 {[%clk 0:02:43]}  bxc6 {[%clk 0:02:25]} 12. Re1 {[%clk 0:02:43]}  Be6 {[%clk 0:02:10]} 13. Na4 {[%clk 0:02:43]}  Qc7 {[%clk 0:02:03]} 14. Qf3 {[%clk 0:02:36]}  Rac8 {[%clk 0:01:51]} 15. c3 {[%clk 0:02:28]}  h6 {[%clk 0:01:38]} 16. Bh4 {[%clk 0:02:27]}  Ne4 {[%clk 0:01:22]} 17. Bxe7 {[%clk 0:02:26]}  Qxe7 {[%clk 0:01:23]} 18. Qf4 {[%clk 0:02:27]}  g5 {[%clk 0:01:17]} 19. Qe3 {[%clk 0:02:26]}  Kg7 {[%clk 0:00:57]} 20. f3 {[%clk 0:02:26]}  Nd6 {[%clk 0:00:56]} 21. Nc5 {[%clk 0:02:26]}  Nb7 {[%clk 0:00:54]} 22. b4 {[%clk 0:02:17]}  Nxc5 {[%clk 0:00:47]} 23. dxc5 {[%clk 0:02:17]}  Bf5 {[%clk 0:00:48]} 24. Qd4 {[%clk 0:02:15]}  Qf6 {[%clk 0:00:45]} 25. a4 {[%clk 0:02:11]}  Rfe8 {[%clk 0:00:41]} 26. b5 {[%clk 0:02:09]}  cxb5 {[%clk 0:00:31]} 27. axb5 {[%clk 0:02:10]}  Re7 {[%clk 0:00:30]} 28. Nc6 {[%clk 0:02:08]}  Rb7 {[%clk 0:00:26]} 29. Nxa7 {[%clk 0:02:00]}  Ra8 {[%clk 0:00:18]} 30. b6 {[%clk 0:01:56]}  Qxd4+ {[%clk 0:00:14]} 31. cxd4 {[%clk 0:01:57]}  c3 {[%clk 0:00:13]} 32. c6 {[%clk 0:01:57]}  Rxb6 {[%clk 0:00:13]} 33. Rec1 {[%clk 0:01:40]}  c2 {[%clk 0:00:10]} 34. g4 {[%clk 0:01:41]}  Bd3 {[%clk 0:00:09]} 35. c7 {[%clk 0:01:41]}  Rb1 {[%clk 0:00:08]} 36. c8=Q {[%clk 0:01:36]}  Rxa7 {[%clk 0:00:06]} 37. Raxb1 {[%clk 0:01:30]}  cxb1=Q {[%clk 0:00:04]} 38. Rxb1 {[%clk 0:01:31]}  Bxb1 {[%clk 0:00:04]} 39. Qb8 {[%clk 0:01:31]}  Ra1 {[%clk 0:00:03]} 40. Qb2 {[%clk 0:01:32]}  Ra4 {[%clk 0:00:02]} 41. Qxb1 {[%clk 0:01:32]}  Rxd4 {[%clk 0:00:02]} 42. Qb2 {[%clk 0:01:32]}  Kg6 {[%clk 0:00:01]} 43. Qxd4 {[%clk 0:01:33]}  h5 {[%clk 0:00:01]} 44. Qxd5 {[%clk 0:01:34]}  hxg4 {[%clk 0:00:01]} 45. fxg4 {[%clk 0:01:35]}  f5 {[%clk 0:00:02]} 46. Qxf5+ {[%clk 0:01:35]}  Kh6 {[%clk 0:00:02]} 47. Qf6+ {[%clk 0:01:36]}  Kh7 {[%clk 0:00:02]} 48. Qxg5 {[%clk 0:01:37]}  Kh8 {[%clk 0:00:02]} 49. Kf2 {[%clk 0:01:38]}  Kh7 {[%clk 0:00:03]} 50. Kf3 {[%clk 0:01:39]}  Kh8 {[%clk 0:00:03]} 51. Kf4 {[%clk 0:01:40]}  Kh7 {[%clk 0:00:04]} 52. Kf5 {[%clk 0:01:41]}  Kh8 {[%clk 0:00:05]} 53. Kf6 {[%clk 0:01:41]}  Kh7 {[%clk 0:00:01]} 54. Kf7 {[%clk 0:01:42]} 1-0

[Event "December 19 Early 2023"]
[Site "https://www.chess.com"]
[Date "2023.12.19"]
[Round "1"]
[White "Brodsky, David"]
[Black "Omariev, Maksim"]
[Result "1-0"]
[Board "69"]
[TimeControl "180+1"]
[WhiteFideId "2073250"]
[BlackFideId "4193423"]
[WhiteElo "2835"]
[BlackElo "2456"]
[WhiteTeam "USA"]
[BlackTeam "RUS"]
[WhiteClock "0:00:18"]
[BlackClock "0:00:00"]

1. d4 {[%clk 0:03:00]}  h5 {[%clk 0:02:57]} 2. e4 {[%clk 0:03:00]}  h4 {[%clk 0:02:57]} 3. c4 {[%clk 0:02:54]}  d6 {[%clk 0:02:57]} 4. h3 {[%clk 0:02:54]}  e5 {[%clk 0:02:56]} 5. Nf3 {[%clk 0:02:52]}  Nc6 {[%clk 0:02:53]} 6. Nc3 {[%clk 0:02:46]}  Be7 {[%clk 0:02:44]} 7. d5 {[%clk 0:02:43]}  Nb8 {[%clk 0:02:44]} 8. Be3 {[%clk 0:02:38]}  Nd7 {[%clk 0:02:30]} 9. b4 {[%clk 0:02:31]}  a5 {[%clk 0:02:28]} 10. a3 {[%clk 0:02:32]}  b6 {[%clk 0:02:24]} 11. Bd3 {[%clk 0:02:26]}  Ngf6 {[%clk 0:02:24]} 12. O-O {[%clk 0:02:26]}  Nh5 {[%clk 0:02:24]} 13. c5 {[%clk 0:02:10]}  bxc5 {[%clk 0:02:05]} 14. bxc5 {[%clk 0:02:10]}  dxc5 {[%clk 0:02:05]} 15. Bb5 {[%clk 0:02:04]}  Bd6 {[%clk 0:01:58]} 16. Nd2 {[%clk 0:01:40]}  Qf6 {[%clk 0:01:44]} 17. Rb1 {[%clk 0:01:29]}  Nf4 {[%clk 0:01:24]} 18. Bc6 {[%clk 0:01:18]}  Ra6 {[%clk 0:01:23]} 19. Nc4 {[%clk 0:01:16]}  O-O {[%clk 0:01:20]} 20. Nb5 {[%clk 0:01:09]}  Nb8 {[%clk 0:00:26]} 21. Bxf4 {[%clk 0:01:07]}  Nxc6 {[%clk 0:00:21]} 22. dxc6 {[%clk 0:01:02]}  exf4 {[%clk 0:00:20]} 23. Nbxd6 {[%clk 0:00:53]}  cxd6 {[%clk 0:00:19]} 24. Nb6 {[%clk 0:00:53]}  Be6 {[%clk 0:00:11]} 25. Qxd6 {[%clk 0:00:49]}  Qg5 {[%clk 0:00:11]} 26. Qd3 {[%clk 0:00:44]}  c4 {[%clk 0:00:08]} 27. Qf3 {[%clk 0:00:28]}  Qc5 {[%clk 0:00:07]} 28. Nd5 {[%clk 0:00:28]}  Rxc6 {[%clk 0:00:04]} 29. Rfc1 {[%clk 0:00:26]}  Bxd5 {[%clk 0:00:02]} 30. exd5 {[%clk 0:00:26]}  Rd6 {[%clk 0:00:03]} 31. Qxf4 {[%clk 0:00:25]}  Qxa3 {[%clk 0:00:03]} 32. Qxc4 {[%clk 0:00:22]}  Rfd8 {[%clk 0:00:00]} 33. Rd1 {[%clk 0:00:18]} 1-0